bitfinex/quotes_BTCUSD_20230114
["timestamp","ask_amount","ask_price","bid_price","bid_amount"]
[1673688019211,0.1,20428.0,20423.0,0.22001045]
[1673688019487,0.1,20428.0,20424.0,0.18971497]
[1673688019732,0.1,20428.0,20426.0,0.47720169]
[1673688019733,0.0846,20428.0,20426.0,0.47720169]
[1673688019983,0.1,20432.0,20426.0,0.47720169]
[1673688019984,0.1,20434.0,20426.0,0.19072595]
[1673688020229,0.1,20434.0,20427.0,0.31515443]
[1673688020463,0.59010393,20450.0,20433.0,0.00989607]
[1673688020790,0.1,20440.0,20433.0,0.00983607]
[1673688021035,0.59016393,20444.0,20436.0,0.489313]
[1673688021293,0.59016393,20444.0,20437.0,0.66792764]
[1673688021539,0.77790165,20435.0,20434.0,0.28219711]
[1673688021799,0.9629276,20435.0,20428.0,0.589514]
[1673688022160,0.67636775,20435.0,20422.0,0.01943133]
[1673688022327,0.67636775,20435.0,20395.0,0.24422726]
[1673688022328,1.15706369,20417.0,20395.0,0.24422726]
[1673688022590,1.15706369,20417.0,20391.0,0.0526934]
[1673688022591,0.09220318,20404.0,20391.0,0.0526934]
[1673688022849,0.09220318,20404.0,20370.0,0.002899]
[1673688022850,12.88428161,20404.0,20387.0,0.02905225]
[1673688023099,0.19072595,20390.0,20388.0,0.47720169]
[1673688023353,0.09482845,20389.0,20379.0,0.1825]
[1673688023652,0.05352836,20384.0,20380.0,0.47720169]
[1673688023902,0.05202836,20383.0,20381.0,0.12066936]
[1673688024175,0.05202836,20383.0,20372.0,0.19072]
[1673688024433,0.08146,20386.0,20372.0,0.19072]
[1673688024434,0.05202836,20382.0,20373.0,0.59631169]
[1673688024688,0.05178837,20381.0,20377.0,0.47720169]
[1673688024937,0.08099,20384.0,20378.0,0.57779469]
[1673688024938,0.07529,20384.0,20378.0,0.57779469]
[1673688025198,0.6,20382.0,20378.0,0.47720169]
[1673688025433,0.68075,20386.0,20373.0,0.19072595]
[1673688025681,0.59976,20381.0,20374.0,0.19072595]
[1673688025952,0.59976,20380.0,20374.0,0.19072595]
[1673688026197,0.05130836,20379.0,20373.0,0.01463897]
[1673688026446,0.05130836,20378.0,20373.0,0.01415897]
[1673688026691,0.03104836,20381.0,20374.0,0.36142396]
[1673688026950,0.59952,20379.0,20374.0,0.19072595]
[1673688027207,0.59952,20375.0,20373.0,0.01415897]
[1673688027429,0.120081,20374.0,20373.0,0.01415897]
[1673688027673,0.18831543,20374.0,20371.0,0.01171974]
[1673688027940,0.1,20379.0,20371.0,0.01171974]
[1673688027941,0.00667207,20379.0,20371.0,0.01171974]
[1673688028194,0.00667207,20379.0,20372.0,0.19072595]
[1673688028439,0.00667207,20379.0,20373.0,0.19072595]
[1673688028440,0.1,20374.0,20373.0,0.19072595]
[1673688028704,0.09975524,20373.0,20368.0,0.10766384]
[1673688028951,0.09975524,20373.0,20359.0,0.14945998]
[1673688028952,0.1825,20369.0,20359.0,0.14945998]
[1673688029214,0.1825,20369.0,20367.0,0.1]
[1673688029215,0.78225524,20369.0,20367.0,0.1]
[1673688029479,0.78225524,20369.0,20350.0,2.03598329]
[1673688029480,0.79984269,20368.0,20350.0,2.03598329]
[1673688029764,0.79984269,20368.0,20350.0,2.51312498]
[1673688029765,1.13394625,20367.0,20350.0,2.51312498]
[1673688030037,0.6,20363.0,20350.0,2.03592329]
[1673688030293,0.47720169,20360.0,20350.0,2.03586329]
[1673688030552,0.79984269,20359.0,20350.0,2.03586329]
[1673688030810,0.79984269,20359.0,20351.0,0.11113614]
[1673688030811,0.19733,20359.0,20351.0,0.11113614]
[1673688031068,0.19733,20359.0,20352.0,0.6]
[1673688031337,0.19233,20359.0,20353.0,0.41171495]
[1673688031581,0.18663,20359.0,20354.0,0.19072595]
[1673688031832,0.18663,20359.0,20355.0,0.41168895]
[1673688032081,0.18663,20359.0,20356.0,0.79072595]
[1673688032366,0.1,20362.0,20357.0,0.41166395]
[1673688032582,0.10012,20366.0,20358.0,0.19072595]
[1673688032832,0.07944,20372.0,20359.0,0.41163495]
[1673688032833,0.35827617,20371.0,20359.0,0.41163495]
[1673688033086,0.14509545,20373.0,20363.0,0.19072595]
[1673688033347,7.18119351,20381.0,20366.0,0.47700189]
[1673688033643,7.18320534,20381.0,20369.0,0.19072595]
[1673688033868,7.18320534,20381.0,20370.0,0.66792764]
[1673688034114,0.00201183,20381.0,20371.0,0.96687387]
[1673688034380,0.07762,20384.0,20372.0,0.87959669]
[1673688034381,0.00201183,20378.0,20372.0,0.87959669]
[1673688034653,0.12840431,20383.0,20373.0,0.87958464]
[1673688034960,0.12840431,20383.0,20374.0,0.35758524]
[1673688035131,0.12840431,20383.0,20376.0,0.59798817]
[1673688035390,0.25,20395.0,20382.0,0.47720169]
[1673688035634,0.25,20395.0,20375.0,0.4825]
[1673688035635,0.182,20414.0,20389.0,0.47720169]
[1673688035879,0.182,20414.0,20390.0,0.3]
[1673688035880,0.1,20394.0,20390.0,0.3]
[1673688036144,0.09935576,20398.0,20390.0,0.3]
[1673688036388,0.09596201,20397.0,20394.0,0.47720169]
[1673688036649,0.11641469,20397.0,20395.0,0.40209595]
[1673688036903,0.04762063,20403.0,20395.0,0.19065159]
[1673688036904,0.0785,20403.0,20395.0,0.19065159]
[1673688037161,0.0785,20403.0,20385.0,0.2825]
[1673688037162,0.36800201,20389.0,20385.0,0.2825]
[1673688037472,0.54088427,20394.0,20387.0,0.7]
[1673688037688,0.21112565,20395.0,20391.0,0.47720169]
[1673688037935,0.17161672,20402.0,20392.0,1.064466]
[1673688038182,0.07837,20408.0,20393.0,0.211398]
[1673688038451,0.11195136,20399.0,20396.0,0.490276]
[1673688038707,0.11374756,20397.0,20392.0,0.490383]
[1673688038964,0.17161672,20398.0,20391.0,0.490409]
[1673688038965,0.17161672,20396.0,20391.0,0.490409]
[1673688039208,0.16591671,20395.0,20389.0,0.980885]
[1673688039466,0.36941274,20404.0,20391.0,0.47720169]
[1673688039719,0.16591671,20404.0,20396.0,0.47720169]
[1673688039996,0.12322019,20407.0,20399.0,0.1]
[1673688040220,0.44720274,20411.0,20401.0,0.490162]
[1673688040221,0.07779,20411.0,20401.0,0.490162]
[1673688040478,0.11861116,20411.0,20402.0,0.66792764]
[1673688040731,0.1779,20416.0,20401.0,0.48839905]
[1673688040732,1.42780764,20421.0,20410.0,0.47720169]
[1673688040983,1.42780764,20421.0,20403.0,0.49072595]
[1673688040984,5.95445512,20417.0,20416.0,0.47720169]
[1673688041260,5.29604612,20417.0,20416.0,1.94754964]
[1673688041493,1.34990764,20421.0,20416.0,1.94754964]
[1673688041739,1.34990764,20421.0,20417.0,1.17900764]
[1673688041998,1.63917356,20424.0,20417.0,1.17900764]
[1673688041999,1.01481649,20424.0,20423.0,0.47720169]
[1673688042246,1.34462994,20427.0,20426.0,0.47720169]
[1673688042247,1.33006051,20427.0,20426.0,0.47720169]
[1673688042504,1.33006051,20427.0,20426.0,0.23637249]
[1673688042505,6.20655567,20427.0,20426.0,0.23637249]
[1673688042759,6.20655567,20427.0,20424.0,1.01481]
[1673688042760,6.26466093,20427.0,20424.0,1.01481]
[1673688043020,5.80317245,20427.0,20420.0,0.489693]
[1673688043293,0.51336995,20426.0,20421.0,0.12337017]
[1673688043547,5.80317245,20427.0,20420.0,0.02540649]
[1673688043548,0.23385279,20425.0,20423.0,0.11272957]
[1673688043797,0.23385279,20425.0,20420.0,0.02540649]
[1673688043798,0.20713651,20422.0,20421.0,0.19072595]
[1673688044067,0.20713651,20422.0,20419.0,0.489738]
[1673688044068,0.28391354,20421.0,20419.0,0.979472]
[1673688044311,0.28391354,20421.0,20420.0,0.78614169]
[1673688044566,0.20403629,20422.0,20420.0,0.78614169]
[1673688044820,0.22524059,20427.0,20421.0,0.47720169]
[1673688045101,0.2166404,20427.0,20422.0,0.608916]
[1673688045348,0.11332148,20426.0,20422.0,0.6164988]
[1673688045592,0.07255823,20426.0,20422.0,0.6164988]
[1673688045846,0.03107512,20427.0,20423.0,0.308893]
[1673688046104,0.03107512,20427.0,20424.0,0.66691333]
[1673688046387,0.40253117,20433.0,20426.0,0.1825]
[1673688046607,0.39385221,20433.0,20430.0,0.1809]
[1673688046862,0.67636775,20435.0,20430.0,0.1809]
[1673688046863,0.00025173,20434.0,20431.0,1.46613464]
[1673688047114,0.00025173,20434.0,20432.0,0.96792764]
[1673688047358,0.67636775,20435.0,20433.0,1.95545264]
[1673688047632,0.20420582,20442.0,20434.0,0.66792764]
[1673688047869,0.20420582,20442.0,20436.0,0.978644]
[1673688048123,0.20420582,20442.0,20437.0,0.49072595]
[1673688048374,0.20407262,20442.0,20438.0,0.97655064]
[1673688048622,0.3404342,20444.0,20439.0,1.45420801]
[1673688048869,2.89700741,20449.0,20443.0,0.46484292]
[1673688049123,2.89700741,20449.0,20444.0,0.242631]
[1673688049124,7.69439884,20449.0,20444.0,0.242631]
[1673688049378,7.69439884,20449.0,20446.0,0.1825]
[1673688049645,7.69439884,20449.0,20447.0,1.62089681]
[1673688049646,1.03663253,20449.0,20447.0,1.62089681]
[1673688049902,0.0001,20450.0,20447.0,1.62089681]
[1673688049903,0.0001,20450.0,20448.0,0.95120881]
[1673688050208,3.62173495,20454.0,20449.0,1.13177981]
[1673688050419,0.00024815,20459.0,20449.0,1.13177981]
[1673688050420,0.00024815,20459.0,20456.0,0.47720169]
[1673688050664,0.07393221,20473.0,20456.0,0.47720169]
[1673688050920,0.6,20471.0,20457.0,1.27766]
[1673688051170,0.19072595,20470.0,20458.0,0.16555712]
[1673688051418,0.6,20468.0,20458.0,0.57551038]
[1673688051722,0.6,20468.0,20448.0,0.1825]
[1673688051723,0.6,20464.0,20459.0,0.16555712]
[1673688051966,0.6,20464.0,20449.0,0.489007]
[1673688051967,0.25,20451.0,20449.0,0.0959165]
[1673688052214,1.04378702,20458.0,20450.0,0.1]
[1673688052483,0.00030739,20456.0,20450.0,0.1]
[1673688052937,0.00030739,20456.0,20447.0,0.1]
[1673688052938,0.66792764,20455.0,20447.0,0.1]
[1673688052944,0.19072595,20455.0,20447.0,0.1]
[1673688053201,0.42457895,20454.0,20447.0,0.7417097]
[1673688053443,6.739e-05,20456.0,20447.0,0.7417097]
[1673688053444,0.19072595,20453.0,20448.0,0.42624213]
[1673688053691,6.739e-05,20456.0,20447.0,0.26450801]
[1673688053692,0.19072595,20452.0,20447.0,0.26450801]
[1673688053939,0.19072595,20453.0,20448.0,0.308439]
[1673688054190,6.739e-05,20456.0,20450.0,0.47720169]
[1673688054460,6.739e-05,20456.0,20451.0,0.96290312]
[1673688054720,0.1,20454.0,20453.0,0.47720169]
[1673688054967,0.44378702,20458.0,20453.0,0.608354]
[1673688055219,0.44378702,20458.0,20454.0,1.00325968]
[1673688055472,0.08127402,20458.0,20455.0,0.977746]
[1673688055725,0.08127402,20458.0,20456.0,0.608301]
[1673688055972,0.08127402,20458.0,20457.0,0.308283]
[1673688056218,0.08127402,20458.0,20457.0,0.608283]
[1673688056463,0.08127402,20458.0,20457.0,0.308283]
[1673688056969,0.08127402,20458.0,20457.0,0.78548469]
[1673688057492,0.00030739,20462.0,20460.0,0.0169781]
[1673688057750,0.00030739,20462.0,20461.0,1.92843781]
[1673688057985,0.6,20476.0,20461.0,1.92843781]
[1673688057986,0.1,20468.0,20461.0,1.92843781]
[1673688058239,0.40590722,20481.0,20466.0,0.47720169]
[1673688058498,0.10553808,20475.0,20469.0,0.16555712]
[1673688058748,0.6,20482.0,20470.0,2.10829181]
[1673688058749,0.11573443,20477.0,20470.0,2.10829181]
[1673688059025,0.1,20478.0,20471.0,0.77358612]
[1673688059275,0.095,20478.0,20473.0,0.97689]
[1673688059533,0.4649829,20483.0,20473.0,0.97689]
[1673688059534,0.34162235,20483.0,20474.0,0.59599117]
[1673688059780,0.1,20480.0,20476.0,1.465077]
[1673688060022,0.1,20480.0,20477.0,0.95067881]
[1673688060350,0.33111283,20483.0,20478.0,0.64275881]
[1673688060569,0.33111283,20483.0,20476.0,1.46508]
[1673688060570,0.3135746,20483.0,20481.0,0.47720169]
[1673688060828,0.3135746,20483.0,20482.0,1.61922481]
[1673688061080,0.3135746,20483.0,20482.0,1.92705881]
[1673688061081,0.3085746,20483.0,20482.0,1.92705881]
[1673688061333,0.3085746,20483.0,20482.0,2.21679418]
[1673688061585,0.0756,20495.0,20482.0,2.21679418]
[1673688061839,0.19072595,20491.0,20483.0,0.15529249]
[1673688062086,0.94580008,20492.0,20484.0,0.15529249]
[1673688062087,0.19072595,20490.0,20484.0,0.15529249]
[1673688062325,0.19072595,20490.0,20485.0,0.15466687]
[1673688062583,0.34580008,20492.0,20486.0,0.307759]
[1673688062881,0.1,20491.0,20487.0,0.3]
[1673688063094,0.34580008,20492.0,20491.0,0.05517901]
[1673688063347,0.34566688,20492.0,20491.0,0.05517901]
[1673688063594,4.0001,20500.0,20491.0,0.05517901]
[1673688063595,4.0001,20500.0,20491.0,1.97075657]
[1673688063843,0.19072595,20499.0,20493.0,0.09288109]
[1673688064121,0.6,20494.0,20493.0,0.08715781]
[1673688064358,0.6,20494.0,20492.0,0.3458]
[1673688064359,0.233853,20494.0,20492.0,0.3458]
[1673688064619,0.67366992,20497.0,20492.0,0.3458]
[1673688064620,0.59812992,20497.0,20492.0,0.3458]
[1673688064867,0.19072595,20499.0,20493.0,0.4878829]
[1673688065125,3.9751,20500.0,20494.0,0.5643595]
[1673688065389,3.9751,20500.0,20495.0,0.39475581]
[1673688065641,3.9751,20500.0,20496.0,0.08715781]
[1673688065642,0.59812992,20498.0,20496.0,0.08715781]
[1673688065917,3.9751,20500.0,20496.0,0.08715781]
[1673688066162,3.9751,20500.0,20498.0,0.81928047]
[1673688066411,3.96660621,20500.0,20499.0,0.307219]
[1673688066717,3.95812006,20500.0,20499.0,0.19417382]
[1673688066936,3.95812006,20500.0,20498.0,0.81928047]
[1673688066937,3.94102809,20500.0,20498.0,0.81928047]
[1673688067175,0.09815423,20499.0,20498.0,0.81928047]
[1673688067420,3.90795024,20500.0,20498.0,1.01346347]
[1673688067676,3.90795024,20500.0,20498.0,0.81928047]
[1673688067938,3.90795024,20500.0,20499.0,0.194175]
[1673688068183,4.00465868,20500.0,20499.0,0.194175]
[1673688068438,3.90795024,20500.0,20489.0,0.11591839]
[1673688068689,3.90795024,20500.0,20489.0,0.39485368]
[1673688068690,1.23946726,20496.0,20489.0,0.39485368]
[1673688068941,0.15344765,20495.0,20494.0,0.10193276]
[1673688069203,1.23946726,20496.0,20494.0,0.09699751]
[1673688069493,1.23946726,20496.0,20491.0,0.54318801]
[1673688069494,0.1,20495.0,20491.0,0.54318801]
[1673688069746,0.1,20495.0,20473.0,0.1]
[1673688069747,0.51298895,20494.0,20484.0,0.488164]
[1673688069999,0.59750582,20489.0,20482.0,0.488232]
[1673688070258,0.322263,20488.0,20478.0,0.11694536]
[1673688070515,0.5,20481.0,20476.0,0.59084718]
[1673688070765,0.19072595,20480.0,20476.0,0.588353]
[1673688071018,0.19072595,20479.0,20477.0,0.065874]
[1673688071269,0.07497,20483.0,20474.0,0.488404]
[1673688071270,0.19072595,20478.0,20474.0,0.488404]
[1673688071555,0.19072595,20478.0,20471.0,0.49097118]
[1673688071556,0.19072595,20477.0,20471.0,0.11829485]
[1673688071831,0.5,20471.0,20467.0,0.10249418]
[1673688072092,0.34416895,20470.0,20467.0,0.1]
[1673688072353,0.07479,20474.0,20462.0,0.36068064]
[1673688072354,0.51298895,20469.0,20462.0,0.36068064]
[1673688072611,0.07479,20473.0,20461.0,0.4134109]
[1673688072612,0.19072595,20468.0,20461.0,0.4134109]
[1673688072867,0.51298895,20467.0,20458.0,0.1035661]
[1673688073399,0.5,20461.0,20458.0,0.1035661]
[1673688073653,0.89599064,20466.0,20456.0,0.10791133]
[1673688073654,0.76298895,20460.0,20456.0,0.10791133]
[1673688073896,0.76298895,20460.0,20441.0,1.23223897]
[1673688073897,0.25,20451.0,20443.0,0.38958048]
[1673688074162,0.25,20451.0,20449.0,0.1]
[1673688074163,0.51298895,20450.0,20449.0,0.1]
[1673688074410,0.19072595,20450.0,20449.0,0.1]
[1673688074654,0.488749,20461.0,20449.0,0.57720169]
[1673688074655,0.38958048,20458.0,20449.0,0.57720169]
[1673688074899,0.38958048,20458.0,20438.0,0.6]
[1673688074900,0.19072595,20457.0,20456.0,0.1071857]
[1673688075145,0.19072595,20457.0,20438.0,0.6]
[1673688075146,2.55904469,20457.0,20442.0,0.1]
[1673688075411,0.47720169,20450.0,20443.0,0.08715781]
[1673688075707,0.6,20451.0,20440.0,1.23223897]
[1673688075708,0.322263,20449.0,20440.0,1.3448776]
[1673688075943,2.09241764,20448.0,20428.0,0.4895]
[1673688076197,0.25,20441.0,20432.0,0.39152246]
[1673688076452,0.25,20431.0,20426.0,0.39559672]
[1673688076724,0.322263,20430.0,20426.0,0.09815367]
[1673688076968,0.07441,20433.0,20430.0,0.25152063]
[1673688077205,0.47720169,20423.0,20422.0,0.10882582]
[1673688077461,0.99017864,20423.0,20401.0,0.6]
[1673688077706,0.07441,20427.0,20404.0,0.6]
[1673688077707,0.39738706,20422.0,20404.0,0.6]
[1673688077967,0.25,20424.0,20404.0,0.6]
[1673688077968,0.39674086,20423.0,20404.0,0.6]
[1673688078264,0.564174,20425.0,20407.0,0.6]
[1673688078265,0.47720169,20418.0,20407.0,0.6]
[1673688078473,0.19072595,20417.0,20408.0,1.18707669]
[1673688078728,0.25,20421.0,20417.0,0.25413123]
[1673688078990,0.564022,20431.0,20417.0,0.25413123]
[1673688078991,0.489499,20430.0,20418.0,0.20954391]
[1673688079257,0.489434,20432.0,20418.0,0.08193876]
[1673688079628,0.25,20420.0,20419.0,0.29144876]
[1673688079800,0.0745,20425.0,20419.0,0.29144876]
[1673688079801,0.25,20425.0,20419.0,1.07703624]
[1673688080047,0.25,20425.0,20420.0,0.29143576]
[1673688080048,0.19072595,20425.0,20420.0,0.29143576]
[1673688080300,0.1,20422.0,20420.0,0.08193876]
[1673688080551,0.1,20427.0,20420.0,0.07673819]
[1673688080860,0.1,20427.0,20423.0,0.16057527]
[1673688081068,0.1,20427.0,20423.0,0.23706127]
[1673688081320,0.1,20427.0,20424.0,0.209454]
[1673688081568,0.22521349,20426.0,20424.0,0.07612958]
[1673688081814,0.1,20426.0,20424.0,0.07612958]
[1673688082061,0.47627176,20426.0,20423.0,0.14549455]
[1673688082306,0.1,20427.0,20423.0,0.14549455]
[1673688082307,0.19072595,20425.0,20423.0,0.14549455]
[1673688082553,0.19072595,20425.0,20417.0,0.17137092]
[1673688082554,0.24972729,20421.0,20417.0,0.17137092]
[1673688082819,0.20083895,20420.0,20418.0,0.47720169]
[1673688083065,0.07416,20425.0,20417.0,0.17137092]
[1673688083066,0.19072595,20419.0,20417.0,0.17137092]
[1673688083314,0.07416,20426.0,20425.0,0.68870627]
[1673688083558,0.07416,20426.0,20417.0,0.24553092]
[1673688083559,0.56853169,20426.0,20417.0,0.17137092]
[1673688083828,0.91087126,20425.0,20418.0,0.18834719]
[1673688084073,0.81319929,20428.0,20419.0,0.19072595]
[1673688084074,0.15876127,20424.0,20419.0,0.19072595]
[1673688084324,0.14864827,20424.0,20419.0,0.29072595]
[1673688084586,0.24972729,20425.0,20420.0,0.19072595]
[1673688084835,0.322355,20424.0,20420.0,0.19072595]
[1673688085091,0.010113,20423.0,20415.0,0.1]
[1673688085345,0.24972729,20421.0,20409.0,0.1]
[1673688085608,0.010113,20420.0,20409.0,0.1]
[1673688085921,0.24972729,20416.0,20409.0,0.1]
[1673688086147,0.97804064,20415.0,20402.0,0.1]
[1673688086388,0.24972729,20411.0,20402.0,0.0859743]
[1673688086638,0.24972729,20411.0,20396.0,0.07372]
[1673688086639,0.010113,20410.0,20396.0,0.39190888]
[1673688086915,0.010113,20410.0,20394.0,0.00717531]
[1673688086916,0.81234,20409.0,20394.0,0.00717531]
[1673688087209,0.182,20407.0,20394.0,0.04597119]
[1673688087469,0.182,20407.0,20386.0,0.490522]
[1673688087470,0.90389277,20406.0,20386.0,0.490522]
[1673688087715,0.1825,20398.0,20384.0,0.13370856]
[1673688087992,0.1825,20398.0,20374.0,0.1886653]
[1673688087993,0.38769522,20397.0,20374.0,0.1886653]
[1673688088250,0.19072595,20390.0,20376.0,0.11187894]
[1673688088732,0.19072595,20390.0,20359.0,0.07417]
[1673688088733,0.178,20380.0,20359.0,0.07417]
[1673688088745,0.178,20380.0,20361.0,0.491124]
[1673688088987,0.07417,20383.0,20360.0,0.38798672]
[1673688088988,0.19072595,20368.0,20360.0,0.38798672]
[1673688089258,0.084267,20379.0,20359.0,0.07417]
[1673688089259,0.490618,20383.0,20378.0,0.87553724]
[1673688089523,0.490618,20383.0,20375.0,1.17136976]
[1673688089524,0.47720169,20379.0,20375.0,1.17136976]
[1673688089781,0.07417,20388.0,20375.0,1.24532976]
[1673688090019,0.07417,20391.0,20376.0,0.47438807]
[1673688090020,0.47720169,20386.0,20376.0,0.47438807]
[1673688090279,0.47720169,20386.0,20377.0,0.15055713]
[1673688090280,0.11872192,20382.0,20377.0,0.15055713]
[1673688090545,0.46713124,20390.0,20377.0,0.15055713]
[1673688090546,0.39214365,20387.0,20377.0,0.15055713]
[1673688090794,0.07396,20390.0,20372.0,0.16610855]
[1673688090795,0.47720169,20373.0,20372.0,0.16610855]
[1673688091098,0.47720169,20373.0,20348.0,0.13957368]
[1673688091099,0.47465295,20373.0,20356.0,0.07367]
[1673688091314,0.47465295,20373.0,20354.0,0.10907136]
[1673688091315,0.19933026,20372.0,20354.0,0.10907136]
[1673688091579,0.19933026,20372.0,20344.0,0.09279204]
[1673688091580,0.1819,20359.0,20345.0,0.1260765]
[1673688091859,0.07353,20369.0,20343.0,0.12235361]
[1673688091860,0.19072595,20349.0,20343.0,0.00295107]
[1673688092123,0.19072595,20349.0,20325.0,0.0015]
[1673688092124,0.010097,20348.0,20328.0,0.6]
[1673688092421,0.09409553,20340.0,20331.0,0.57415828]
[1673688092671,0.87302987,20348.0,20329.0,0.07415828]
[1673688092672,0.47720169,20334.0,20329.0,0.07415828]
[1673688092932,0.03752879,20337.0,20329.0,0.07415828]
[1673688092933,0.47720169,20333.0,20329.0,0.02503062]
[1673688093190,0.983063,20345.0,20329.0,0.02503062]
[1673688093191,0.0734,20352.0,20332.0,0.0196825]
[1673688093441,0.07288,20352.0,20335.0,0.40689827]
[1673688093738,0.491413,20350.0,20340.0,0.0196825]
[1673688093986,0.491413,20350.0,20335.0,0.40689827]
[1673688093987,0.07288,20352.0,20339.0,0.0196825]
[1673688094232,4.8212547,20361.0,20343.0,0.0196825]
[1673688094496,0.25603,20369.0,20350.0,0.2080783]
[1673688094497,0.47720169,20359.0,20350.0,0.2080783]
[1673688094742,0.47720169,20357.0,20351.0,0.51318395]
[1673688095024,0.07255,20366.0,20352.0,0.322458]
[1673688095025,0.12960659,20358.0,20352.0,0.322458]
[1673688095284,0.07255,20366.0,20353.0,0.40171295]
[1673688095285,0.07255,20363.0,20353.0,0.40171295]
[1673688095530,0.07255,20363.0,20345.0,0.89132474]
[1673688095531,0.11521803,20364.0,20358.0,0.09893694]
[1673688095786,0.10713864,20365.0,20359.0,0.32096107]
[1673688096057,0.07211,20368.0,20360.0,1.17314264]
[1673688096058,0.10355295,20368.0,20360.0,1.17314264]
[1673688096371,0.11593348,20371.0,20361.0,0.51334795]
[1673688096628,0.11593348,20371.0,20358.0,0.09893694]
[1673688096629,0.5803175,20366.0,20362.0,0.39422595]
[1673688096881,0.57255021,20363.0,20359.0,0.11565724]
[1673688097124,0.57255021,20365.0,20358.0,0.09887694]
[1673688097374,0.05786844,20359.0,20358.0,0.09887694]
[1673688097631,0.07739944,20359.0,20352.0,0.12330295]
[1673688097879,0.0713,20362.0,20351.0,0.12890844]
[1673688097880,0.05786844,20353.0,20351.0,0.12890844]
[1673688098127,0.05786844,20353.0,20345.0,1.0179632]
[1673688098128,0.02341652,20353.0,20345.0,1.0179632]
[1673688098378,0.02341652,20347.0,20345.0,0.0349262]
[1673688098625,0.02341652,20347.0,20333.0,0.491793]
[1673688098626,0.019531,20346.0,20341.0,0.1]
[1673688098990,0.47111824,20357.0,20342.0,0.47720169]
[1673688099165,0.02341652,20347.0,20339.0,0.0527066]
[1673688099413,0.02341652,20347.0,20346.0,0.09620003]
[1673688099414,6e-05,20347.0,20346.0,0.09620003]
[1673688099660,0.02353652,20347.0,20346.0,0.09614003]
[1673688099923,0.04306752,20347.0,20346.0,0.02854928]
[1673688100195,0.47115081,20347.0,20346.0,0.02854928]
[1673688100435,0.49068181,20347.0,20346.0,0.02854928]
[1673688100959,0.49068181,20347.0,20343.0,0.12093162]
[1673688101211,0.47720169,20346.0,20331.0,0.88804452]
[1673688101475,0.47720169,20346.0,20339.0,0.09734668]
[1673688101476,0.019531,20345.0,20339.0,0.09734668]
[1673688101720,0.019531,20345.0,20339.0,0.19072595]
[1673688101721,0.00583197,20344.0,20339.0,0.19072595]
[1673688101981,0.47720169,20345.0,20336.0,0.1]
[1673688102251,0.63653613,20344.0,20338.0,0.09980627]
[1673688102501,0.63653613,20344.0,20338.0,0.19072595]
[1673688102502,1.01566773,20343.0,20338.0,0.19072595]
[1673688102788,1.01566773,20343.0,20332.0,0.10798805]
[1673688102789,0.47720169,20342.0,20332.0,0.10798805]
[1673688103030,0.47720169,20342.0,20331.0,0.1]
[1673688103031,0.47720169,20338.0,20331.0,0.1]
[1673688103289,0.68446296,20342.0,20331.0,0.1]
[1673688103290,0.89143946,20341.0,20331.0,0.1]
[1673688103554,0.47720169,20337.0,20331.0,0.29072595]
[1673688103806,0.491714,20338.0,20331.0,0.10161855]
[1673688104294,0.491714,20338.0,20333.0,0.11078808]
[1673688104295,0.6871967,20338.0,20333.0,0.11078808]
[1673688104538,1.163113,20340.0,20333.0,0.19072595]
[1673688104539,0.49997677,20337.0,20333.0,0.19072595]
[1673688104787,1.654769,20340.0,20333.0,0.19066595]
[1673688105037,1.654769,20340.0,20325.0,0.0015]
[1673688105038,0.06590678,20340.0,20334.0,0.19066595]
[1673688105321,0.06590678,20340.0,20325.0,0.0015]
[1673688105322,0.6,20335.0,20325.0,0.0015]
[1673688105830,0.6,20333.0,20332.0,0.11439548]
[1673688106084,0.07221,20332.0,20311.0,0.492339]
[1673688106335,0.05609141,20330.0,20315.0,0.19072595]
[1673688106632,0.38909348,20331.0,20316.0,0.66792764]
[1673688106633,0.03821141,20329.0,20316.0,0.66792764]
[1673688106857,0.04889262,20328.0,20317.0,0.99066364]
[1673688107115,1.42451754,20334.0,20318.0,0.95724364]
[1673688107116,0.39609158,20331.0,20318.0,0.95724364]
[1673688107362,0.07275,20334.0,20319.0,1.01448284]
[1673688107363,0.19072595,20330.0,20319.0,1.01448284]
[1673688107605,0.19072595,20329.0,20320.0,0.88118484]
[1673688107872,0.19072595,20328.0,20322.0,0.98412]
[1673688108116,1e-08,20329.0,20323.0,0.88115184]
[1673688108366,1e-08,20329.0,20322.0,0.49206]
[1673688108367,0.19072595,20329.0,20322.0,0.49206]
[1673688108629,0.07288,20332.0,20317.0,0.492191]
[1673688108630,0.19072595,20328.0,20317.0,0.492191]
[1673688108887,0.19072595,20327.0,20316.0,0.39550642]
[1673688109175,0.47720169,20329.0,20316.0,0.51043707]
[1673688109176,0.19072595,20326.0,20316.0,0.51043707]
[1673688109398,0.39140015,20328.0,20314.0,0.66860526]
[1673688109399,0.19072595,20325.0,20317.0,0.08713529]
[1673688109636,0.19072595,20324.0,20318.0,0.08291181]
[1673688109881,0.19072595,20323.0,20319.0,0.322736]
[1673688110275,0.07327,20330.0,20319.0,0.322736]
[1673688110276,0.19072595,20324.0,20320.0,0.211516]
[1673688110573,0.07363,20329.0,20321.0,0.322703]
[1673688110574,0.10181997,20329.0,20321.0,0.322703]
[1673688110806,0.07371,20332.0,20322.0,0.29124185]
[1673688111057,0.10694519,20330.0,20323.0,0.39381635]
[1673688111282,0.58384917,20332.0,20331.0,0.07439156]
[1673688111520,0.10885,20334.0,20331.0,0.07439156]
[1673688111857,0.47720169,20333.0,20332.0,0.24747839]
[1673688112007,0.27131941,20333.0,20332.0,0.07976685]
[1673688112254,0.173886,20333.0,20332.0,0.07976685]
[1673688112488,0.07363,20339.0,20332.0,0.07976685]
[1673688112489,0.0001,20350.0,20333.0,0.0190726]
[1673688112734,0.0001,20350.0,20338.0,0.7808]
[1673688112735,0.24972729,20349.0,20338.0,0.7808]
[1673688112971,0.24972729,20349.0,20343.0,0.47720169]
[1673688113217,0.07354,20360.0,20346.0,0.55478019]
[1673688113459,0.07354,20363.0,20353.0,0.491308]
[1673688113460,0.12627748,20357.0,20353.0,0.491308]
[1673688113715,0.07354,20364.0,20354.0,0.214271]
[1673688113944,0.0735,20369.0,20355.0,0.37918354]
[1673688113945,0.25,20357.0,20355.0,0.37918354]
[1673688114197,0.25,20357.0,20356.0,0.76220254]
[1673688114198,0.2495487,20357.0,20356.0,0.76220254]
[1673688114511,0.4772,20372.0,20356.0,1.23038445]
[1673688114734,0.4772,20372.0,20357.0,0.31778556]